lending/lending_fUSD_20250121
["ID","MTS","AMOUNT","RATE_DAILY","PERIOD"]
[349791145,1737431465813,-500.0,0.00020821,2]
[349791146,1737431465822,-500.0,0.00020821,2]
[349791147,1737431465831,-500.0,0.00020821,2]
[349791148,1737431465839,-500.0,0.00020821,2]
[349791149,1737431465848,-449.28157523,0.00020821,2]
[349791150,1737431465858,-588.53,0.00020821,2]
[349791151,1737431465867,-500.0,0.00020821,2]
[349791152,1737431465876,-521.63218415,0.00020821,2]
[349791153,1737431465885,-500.0,0.00020821,2]
[349791154,1737431465894,-500.0,0.00020821,2]
[349791155,1737431465903,-500.0,0.00020821,2]
[349791156,1737431465913,-500.0,0.00020821,2]
[349791157,1737431465922,-500.0,0.00020821,2]
[349791158,1737431465931,-500.0,0.00020821,2]
[349791159,1737431465941,-480.0,0.00020821,2]
[349791160,1737431465950,-500.0,0.00020821,2]
[349791161,1737431465961,-500.0,0.00020821,2]
[349791162,1737431465971,-500.0,0.00020821,2]
[349791163,1737431465981,-500.0,0.00020821,2]
[349791164,1737431465991,-500.0,0.00020821,2]
[349791165,1737431466000,-540.51144588,0.00020821,2]
[349791166,1737431466010,-500.0,0.00020821,2]
[349791167,1737431466019,-554.98,0.00020821,2]
[349791168,1737431466028,-997.23,0.00020821,2]
[349791169,1737431466037,-500.0,0.00020821,2]
[349791170,1737431466046,-500.0,0.00020821,2]
[349791171,1737431466055,-500.0,0.00020821,2]
[349791172,1737431466064,-500.0,0.00020821,2]
[349791173,1737431466073,-500.0,0.00020821,2]
[349791174,1737431466082,-500.0,0.00020821,2]
[349791175,1737431466091,-521.3110304,0.00020821,2]
[349791176,1737431466100,-500.0,0.00020821,2]
[349791177,1737431466110,-701.25,0.00020821,2]
[349791178,1737431466118,-500.0,0.00020821,2]
[349791179,1737431466127,-500.0,0.00020821,2]
[349791180,1737431466137,-692.94,0.00020821,2]
[349791181,1737431466146,-1414.07,0.00020821,2]
[349791182,1737431466156,-500.0,0.00020821,2]
[349791183,1737431466165,-500.0,0.00020821,2]
[349791184,1737431466174,-500.0,0.00020821,2]
[349791185,1737431466183,-548.14,0.00020821,2]
[349791186,1737431466192,-157.934379,0.00020821,2]
[349791187,1737431466302,-500.0,0.00020821,2]
[349791188,1737431466311,-500.0,0.00020821,2]
[349791189,1737431466322,-1043.76,0.00020821,2]
[349791190,1737431466332,-1957.94,0.00020821,2]
[349791191,1737431466341,-500.0,0.00020821,2]
[349791192,1737431466350,-500.0,0.00020821,2]
[349791193,1737431466361,-500.0,0.00020821,2]
[349791194,1737431466370,-500.0,0.00020821,2]
[349791195,1737431466381,-748.19,0.00020821,2]
[349791196,1737431466394,-500.0,0.00020821,2]
[349791197,1737431466403,-519.1844596,0.00020821,2]
[349791198,1737431466414,-500.0,0.00020821,2]
[349791199,1737431466424,-687.73,0.00020821,2]
[349791200,1737431466435,-190.983926,0.00020821,2]
[349791201,1737431466444,-500.0,0.00020821,2]
[349791202,1737431466453,-1914.62,0.00020821,2]
[349791203,1737431466464,-1072.38,0.00020821,2]
[349791204,1737431466474,-500.0,0.00020821,2]
[349791205,1737431466483,-1057.57,0.00020821,2]
[349791206,1737431466492,-500.0,0.00020821,2]
[349791207,1737431466501,-500.0,0.00020821,2]
[349791208,1737431466510,-3718.34,0.00020821,2]
[349791209,1737431466519,-1040.36,0.00020821,2]
[349791210,1737431466529,-616.87,0.00020821,2]
[349791211,1737431466538,-500.0,0.00020821,2]
[349791212,1737431466547,-2085.05,0.00020821,2]
[349791213,1737431466557,-1778.99,0.00020821,2]
[349791214,1737431466567,-634.1,0.00020821,2]
[349791215,1737431466578,-616.88,0.00020821,2]
[349791216,1737431466588,-500.0,0.00020821,2]
[349791217,1737431466598,-1286.82,0.00020821,2]
[349791218,1737431466610,-1351.91,0.00020821,2]
[349791219,1737431466619,-808.1,0.00020821,2]
[349791220,1737431466628,-500.0,0.00020821,2]
[349791221,1737431466638,-405.65025118,0.00020821,2]
[349791222,1737431466647,-2057.31,0.00020821,2]
[349791223,1737431466656,-709.92,0.00020821,2]
[349791224,1737431466665,-860.56,0.00020821,2]
[349791225,1737431466674,-500.0,0.00020821,2]
[349791226,1737431466684,-500.0,0.00020821,2]
[349791227,1737431466693,-504.80205826,0.00020821,2]
[349791228,1737431466702,-629.86,0.00020821,2]
[349791229,1737431466712,-500.0,0.00020821,2]
[349791230,1737431466721,-500.0,0.00020821,2]
[349791231,1737431466730,-500.0,0.00020821,2]
[349791232,1737431466739,-500.0,0.00020821,2]
[349791233,1737431466749,-500.0,0.00020821,2]
[349791234,1737431466759,-2023.46,0.00020821,2]
[349791235,1737431466769,-577.3,0.00020821,2]
[349791236,1737431466778,-692.77,0.00020821,2]
[349791237,1737431466788,-2706.85,0.00020821,2]
[349791238,1737431466798,-1366.24,0.00020821,2]
[349791239,1737431466807,-500.0,0.00020821,2]
[349791240,1737431466816,-641.22,0.00020821,2]
[349791241,1737431466826,-500.0,0.00020821,2]
[349791242,1737431466835,-500.0,0.00020821,2]
[349791243,1737431466845,-500.0,0.00020821,2]
[349791244,1737431466854,-1745.41,0.00020821,2]
[349791245,1737431466863,-636.37,0.00020821,2]
[349791246,1737431466872,-565.86,0.00020821,2]
[349791247,1737431466881,-832.95,0.00020821,2]
[349791248,1737431466891,-275.65703794,0.00020821,2]
[349791249,1737431466900,-1196.64,0.00020821,2]
[349791250,1737431466910,-2691.18,0.00020821,2]
[349791251,1737431466919,-925.48,0.00020821,2]
[349791252,1737431466929,-1247.91,0.00020821,2]
[349791253,1737431466938,-500.0,0.00020821,2]
[349791254,1737431466947,-500.0,0.00020821,2]
[349791255,1737431466957,-999.61,0.00020821,2]
[349791256,1737431466969,-502.6024351,0.00020821,2]
[349791257,1737431466978,-1943.47,0.00020821,2]
[349791258,1737431466988,-500.0,0.00020821,2]
[349791259,1737431466997,-500.0,0.00020821,2]
[349791260,1737431467007,-1120.67,0.00020821,2]
[349791261,1737431467016,-886.99,0.00020821,2]
[349791262,1737431467025,-500.0,0.00020821,2]
[349791263,1737431467034,-1261.99,0.00020821,2]
[349791264,1737431467043,-2125.42,0.00020821,2]
[349791265,1737431467052,-500.0,0.00020821,2]
[349791266,1737431467061,-500.0,0.00020821,2]
[349791267,1737431467071,-1434.09,0.00020821,2]
[349791268,1737431467080,-259.47837126,0.00020821,2]
[349791269,1737431467090,-1480.4,0.00020821,2]
[349791270,1737431467099,-511.03,0.00020821,2]
[349791271,1737431467108,-873.5,0.00020821,2]
[349791272,1737431467118,-500.0,0.00020821,2]
[349791273,1737431467127,-500.0,0.00020821,2]
[349791274,1737431467136,-512.59149872,0.00020821,2]
[349791275,1737431467146,-945.49,0.00020821,2]
[349791276,1737431467155,-534.49091151,0.00020821,2]
[349791277,1737431467164,-509.1,0.00020821,2]
[349791278,1737431467173,-1000.0,0.00020821,2]
[349791279,1737431467183,-500.0,0.00020821,2]
[349791280,1737431467192,-1020.26,0.00020821,2]
[349791281,1737431467202,-1179.69,0.00020821,2]
[349791282,1737431467211,-1196.36,0.00020821,2]
[349791283,1737431467221,-1380.46,0.00020821,2]
[349791284,1737431467230,-618.98,0.00020821,2]
[349791285,1737431467241,-500.0,0.00020821,2]
[349791286,1737431467250,-549.65,0.00020821,2]
[349791287,1737431467259,-673.28,0.00020821,2]
[349791288,1737431467268,-2381.85,0.00020821,2]
[349791289,1737431467278,-500.0,0.00020821,2]
[349791290,1737431467287,-1438.7,0.00020821,2]
[349791291,1737431467296,-500.0,0.00020821,2]
[349791292,1737431467305,-500.0,0.00020821,2]
[349791293,1737431467315,-546.12,0.00020821,2]
[349791294,1737431467325,-1308.98,0.00020821,2]
[349791295,1737431467335,-274.60976829,0.00020821,2]
[349791296,1737431467344,-1491.71,0.00020821,2]
[349791297,1737431467353,-573.04,0.00020821,2]
[349791298,1737431467363,-500.0,0.00020821,2]
[349791299,1737431467372,-1575.05,0.00020821,2]
[349791300,1737431467381,-894.47,0.00020821,2]
[349791301,1737431467392,-628.18,0.00020821,2]
[349791302,1737431467401,-500.0,0.00020821,2]
[349791303,1737431467412,-500.0,0.00020821,2]
[349791304,1737431467422,-1534.21,0.00020821,2]
[349791305,1737431467431,-1230.77,0.00020821,2]
[349791306,1737431467440,-273.49004344,0.00020821,2]
[349791307,1737431467450,-500.0,0.00020821,2]
[349791308,1737431467460,-681.3,0.00020821,2]
[349791309,1737431467469,-500.0,0.00020821,2]
[349791310,1737431467478,-500.0,0.00020821,2]
[349791311,1737431467487,-500.0,0.00020821,2]
[349791312,1737431467496,-700.3,0.00020821,2]
[349791313,1737431467505,-500.0,0.00020821,2]
[349791314,1737431467514,-1332.19,0.00020821,2]
[349791315,1737431467523,-907.81,0.00020821,2]
[349791316,1737431467532,-524.98256882,0.00020821,2]
[349791317,1737431467541,-500.0,0.00020821,2]
[349791318,1737431467551,-35832.0,0.0002089,7]
[349791319,1737431467559,-17491.14537034,0.000209,2]
[349791320,1737431467568,-161.386,0.000209,2]
[349791321,1737431467577,-21948.61484313,0.00020959,2]
[349791322,1737431467587,-15097.33547228,0.00020959,2]
[349791323,1737431467596,-208.67537111,0.00020991,2]
[349791324,1737431467605,-400.0,0.00021,10]
[349791325,1737431467614,-500.0,0.00021035,2]
[349791326,1737431467623,-500.0,0.00021035,2]
[349791327,1737431467633,-500.0,0.00021035,2]
[349791328,1737431467643,-500.0,0.00021035,2]
[349791329,1737431467651,-526.91321075,0.00021035,2]
[349791330,1737431467664,-984.38,0.00021035,2]
[349791331,1737431467673,-500.0,0.00021035,2]
[349791332,1737431467682,-500.0,0.00021035,2]
[349791333,1737431467691,-500.0,0.00021035,2]
[349791334,1737431467700,-500.0,0.00021035,2]
[349791335,1737431467709,-500.0,0.00021035,2]
[349791336,1737431467718,-500.0,0.00021035,2]
[349791337,1737431467728,-500.0,0.00021035,2]
[349791338,1737431467737,-500.0,0.00021035,2]
[349791339,1737431467746,-500.0,0.00021035,2]
[349791340,1737431467755,-183.36507153,0.00021035,2]
[349791341,1737431467764,-500.0,0.00021035,2]
[349791342,1737431467774,-517.25659685,0.00021035,2]
[349791343,1737431467783,-500.0,0.00021035,2]
[349791344,1737431467793,-500.0,0.00021035,2]
[349791345,1737431467898,-623.46,0.00021035,2]
[349791346,1737431467909,-500.0,0.00021035,2]
[349791347,1737431467919,-570.93,0.00021035,2]
[349791348,1737431467928,-586.4,0.00021035,2]
[349791349,1737431467937,-540.07,0.00021035,2]
[349791350,1737431467948,-500.0,0.00021035,2]
[349791351,1737431467957,-500.0,0.00021035,2]
[349791352,1737431467967,-500.0,0.00021035,2]
[349791353,1737431467976,-369.42,0.00021035,2]
[349791354,1737431467985,-500.0,0.00021035,2]
[349791355,1737431467995,-572.74,0.00021035,2]
[349791356,1737431468005,-500.0,0.00021035,2]
[349791357,1737431468014,-741.83,0.00021035,2]
[349791358,1737431468023,-728.53,0.00021035,2]
[349791359,1737431468032,-728.53,0.00021035,2]
[349791360,1737431468042,-500.0,0.00021035,2]
[349791361,1737431468051,-535.34,0.00021035,2]
[349791362,1737431468061,-500.0,0.00021035,2]
[349791363,1737431468071,-500.0,0.00021035,2]
[349791364,1737431468080,-835.45,0.00021035,2]
[349791365,1737431468089,-500.0,0.00021035,2]
[349791366,1737431468099,-500.0,0.00021035,2]
[349791367,1737431468108,-500.0,0.00021035,2]
[349791368,1737431468117,-503.48,0.00021035,2]
[349791369,1737431468127,-2737.18,0.00021035,2]
[349791370,1737431468136,-500.0,0.00021035,2]
[349791371,1737431468146,-500.0,0.00021035,2]
[349791372,1737431468157,-500.0,0.00021035,2]
[349791373,1737431468167,-500.0,0.00021035,2]
[349791374,1737431468176,-500.0,0.00021035,2]
[349791375,1737431468185,-3365.89,0.00021035,2]
[349791376,1737431468194,-527.22547369,0.00021035,2]
[349791377,1737431468204,-500.0,0.00021035,2]
[349791378,1737431468213,-516.86483823,0.00021035,2]
[349791379,1737431468223,-500.0,0.00021035,2]
[349791380,1737431468232,-500.0,0.00021035,2]
[349791381,1737431468241,-500.0,0.00021035,2]
[349791382,1737431468251,-1871.28,0.00021035,2]
[349791383,1737431468261,-433.0471027,0.00021035,2]
[349791384,1737431468271,-500.0,0.00021035,2]
[349791385,1737431468280,-500.0,0.00021035,2]
[349791386,1737431468290,-500.0,0.00021035,2]
[349791387,1737431468299,-1519.97,0.00021035,2]
[349791388,1737431468308,-500.0,0.00021035,2]
[349791389,1737431468318,-210.0,0.0002109,2]
[349791390,1737431468327,-150.0,0.00021094,2]
[349791391,1737431468336,-500.0,0.00021095,2]
[349791392,1737431468345,-500.0,0.00021095,2]
[349791393,1737431468354,-500.0,0.00021095,2]
[349791394,1737431468363,-500.0,0.00021095,2]
[349791395,1737431468372,-302.01826536,0.00021095,2]
[349791396,1737431468381,-500.0,0.00021095,2]
[349791397,1737431468393,-500.0,0.00021095,2]
[349791398,1737431468402,-500.0,0.00021095,2]
[349791399,1737431468414,-500.0,0.00021095,2]
[349791400,1737431468423,-500.0,0.00021095,2]
[349791401,1737431468434,-2605.56,0.00021095,2]
[349791402,1737431468443,-507.06,0.00021095,2]
[349791403,1737431468452,-500.0,0.00021095,2]
[349791404,1737431468462,-500.0,0.00021095,2]
[349791405,1737431468472,-500.0,0.00021095,2]
[349791406,1737431468482,-500.0,0.00021095,2]
[349791407,1737431468491,-500.0,0.00021095,2]
[349791408,1737431468501,-500.0,0.00021095,2]
[349791409,1737431468510,-643.06,0.00021095,2]
[349791410,1737431468520,-549.9,0.00021095,2]
[349791411,1737431468529,-500.0,0.00021095,2]
[349791412,1737431468538,-500.0,0.00021095,2]
[349791413,1737431468547,-804.89,0.00021095,2]
[349791414,1737431468557,-500.0,0.00021095,2]
[349791415,1737431468566,-500.0,0.00021095,2]
[349791416,1737431468577,-500.0,0.00021095,2]
[349791417,1737431468587,-500.0,0.00021095,2]
[349791418,1737431468596,-348.83207896,0.00021095,2]
[349791419,1737431468605,-500.0,0.00021095,2]
[349791420,1737431468616,-500.0,0.00021095,2]
[349791421,1737431468624,-500.0,0.00021095,2]
[349791422,1737431468635,-294.82772123,0.00021095,2]
[349791423,1737431468644,-520.25,0.00021095,2]
[349791424,1737431468656,-500.0,0.00021095,2]
[349791425,1737431468664,-500.0,0.00021095,2]
[349791426,1737431468675,-997.65,0.00021095,2]
[349791427,1737431468684,-500.0,0.00021095,2]
[349791428,1737431468693,-632.4,0.00021095,2]
[349791429,1737431468702,-500.0,0.00021095,2]
[349791430,1737431468712,-500.0,0.00021095,2]
[349791431,1737431468722,-500.0,0.00021095,2]
[349791432,1737431468731,-840.51,0.00021095,2]
[349791433,1737431468741,-500.0,0.00021095,2]
[349791434,1737431468752,-500.0,0.00021095,2]
[349791435,1737431468761,-500.0,0.00021095,2]
[349791436,1737431468771,-500.0,0.00021095,2]
[349791437,1737431468780,-588.53,0.00021095,2]
[349791438,1737431468789,-500.0,0.00021095,2]
[349791439,1737431468799,-500.0,0.00021095,2]
[349791440,1737431468807,-500.0,0.00021095,2]
[349791441,1737431468817,-500.0,0.00021095,2]
[349791442,1737431468826,-500.0,0.00021095,2]
[349791443,1737431468835,-500.0,0.00021095,2]
[349791444,1737431468845,-500.0,0.00021095,2]
[349791445,1737431468854,-440.0,0.00021095,2]
[349791446,1737431468864,-500.0,0.00021095,2]
[349791447,1737431468872,-500.0,0.00021095,2]
[349791448,1737431468882,-500.0,0.00021095,2]
[349791449,1737431468891,-500.0,0.00021095,2]
[349791450,1737431468901,-554.98,0.00021095,2]
[349791451,1737431468912,-997.23,0.00021095,2]
[349791452,1737431468922,-500.0,0.00021095,2]
[349791453,1737431468931,-500.0,0.00021095,2]
[349791454,1737431468941,-500.0,0.00021095,2]
[349791455,1737431468950,-500.0,0.00021095,2]
[349791456,1737431468960,-500.0,0.00021095,2]
[349791457,1737431468970,-500.0,0.00021095,2]
[349791458,1737431468979,-500.0,0.00021095,2]
[349791459,1737431468989,-701.25,0.00021095,2]
[349791460,1737431468998,-500.0,0.00021095,2]
[349791461,1737431469007,-500.0,0.00021095,2]
[349791462,1737431469017,-692.94,0.00021095,2]
[349791463,1737431469031,-1414.07,0.00021095,2]
[349791464,1737431469040,-500.0,0.00021095,2]
[349791465,1737431469049,-508.13369328,0.00021095,2]
[349791466,1737431469059,-500.0,0.00021095,2]
[349791467,1737431469069,-548.14,0.00021095,2]
[349791468,1737431469079,-157.934379,0.00021095,2]
[349791469,1737431469089,-500.0,0.00021095,2]
[349791470,1737431469099,-500.0,0.00021095,2]
[349791471,1737431469109,-1043.76,0.00021095,2]
[349791472,1737431469120,-1957.94,0.00021095,2]
[349791473,1737431469129,-532.56261785,0.00021095,2]
[349791474,1737431469139,-199.26642318,0.00021095,2]
[349791475,1737431469150,-500.0,0.00021095,2]
[349791476,1737431469161,-500.0,0.00021095,2]
[349791477,1737431469170,-748.19,0.00021095,2]
[349791478,1737431469180,-500.0,0.00021095,2]
[349791479,1737431469191,-500.0,0.00021095,2]
[349791480,1737431469200,-687.73,0.00021095,2]
[349791481,1737431469209,-190.983926,0.00021095,2]
[349791482,1737431469219,-500.0,0.00021095,2]
[349791483,1737431469229,-1914.62,0.00021095,2]
[349791484,1737431469240,-1072.38,0.00021095,2]
[349791485,1737431469249,-500.0,0.00021095,2]
[349791486,1737431469259,-1057.57,0.00021095,2]
[349791487,1737431469269,-500.0,0.00021095,2]
[349791488,1737431469278,-3718.34,0.00021095,2]
[349791489,1737431469287,-1040.36,0.00021095,2]
[349791490,1737431469297,-616.87,0.00021095,2]
[349791491,1737431469399,-500.0,0.00021095,2]
[349791492,1737431469411,-2085.05,0.00021095,2]
[349791493,1737431469421,-1778.99,0.00021095,2]
[349791494,1737431469431,-634.1,0.00021095,2]
[349791495,1737431469441,-616.88,0.00021095,2]
[349791496,1737431469450,-500.0,0.00021095,2]
[349791497,1737431469460,-1286.82,0.00021095,2]
[349791498,1737431469470,-1351.91,0.00021095,2]
[349791499,1737431469479,-808.1,0.00021095,2]
[349791500,1737431469493,-581.68435356,0.00021095,2]
[349791501,1737431469502,-2057.31,0.00021095,2]
[349791502,1737431469512,-709.92,0.00021095,2]
[349791503,1737431469521,-860.56,0.00021095,2]
[349791504,1737431469531,-500.0,0.00021095,2]
[349791505,1737431469540,-500.0,0.00021095,2]
[349791506,1737431469550,-629.86,0.00021095,2]
[349791507,1737431469560,-500.0,0.00021095,2]
[349791508,1737431469570,-500.0,0.00021095,2]
[349791509,1737431469579,-500.0,0.00021095,2]
[349791510,1737431469589,-500.0,0.00021095,2]
[349791511,1737431469598,-500.0,0.00021095,2]
[349791512,1737431469607,-2023.46,0.00021095,2]
[349791513,1737431469618,-577.3,0.00021095,2]
[349791514,1737431469627,-692.77,0.00021095,2]
[349791515,1737431469636,-2706.85,0.00021095,2]
[349791516,1737431469646,-1366.24,0.00021095,2]
[349791517,1737431469657,-500.0,0.00021095,2]
[349791518,1737431469667,-641.22,0.00021095,2]
[349791519,1737431469677,-500.0,0.00021095,2]
[349791520,1737431469687,-500.0,0.00021095,2]
[349791521,1737431469698,-500.0,0.00021095,2]
[349791522,1737431469707,-1745.41,0.00021095,2]
[349791523,1737431469717,-636.37,0.00021095,2]
[349791524,1737431469727,-565.86,0.00021095,2]
[349791525,1737431469736,-832.95,0.00021095,2]
[349791526,1737431469746,-1196.64,0.00021095,2]
[349791527,1737431469756,-2691.18,0.00021095,2]
[349791528,1737431469766,-925.48,0.00021095,2]
[349791529,1737431469775,-1247.91,0.00021095,2]
[349791530,1737431469784,-500.0,0.00021095,2]
[349791531,1737431469794,-500.0,0.00021095,2]
[349791532,1737431469804,-999.61,0.00021095,2]
[349791533,1737431469814,-1943.47,0.00021095,2]
[349791534,1737431469824,-500.0,0.00021095,2]
[349791535,1737431469834,-500.0,0.00021095,2]
[349791536,1737431469843,-1120.67,0.00021095,2]
[349791537,1737431469853,-886.99,0.00021095,2]
[349791538,1737431469864,-500.0,0.00021095,2]
[349791539,1737431469875,-1261.99,0.00021095,2]
[349791540,1737431469884,-2125.42,0.00021095,2]
[349791541,1737431469895,-500.0,0.00021095,2]
[349791542,1737431469907,-500.0,0.00021095,2]
[349791543,1737431469917,-1434.09,0.00021095,2]
[349791544,1737431469927,-1480.4,0.00021095,2]
[349791545,1737431469937,-511.03,0.00021095,2]
[349791546,1737431469947,-873.5,0.00021095,2]
[349791547,1737431469956,-500.0,0.00021095,2]
[349791548,1737431469967,-500.0,0.00021095,2]
[349791549,1737431469976,-945.49,0.00021095,2]
[349791550,1737431469986,-509.1,0.00021095,2]
[349791551,1737431469995,-500.0,0.00021095,2]
[349791552,1737431470005,-1020.26,0.00021095,2]
[349791553,1737431470014,-1179.69,0.00021095,2]
[349791554,1737431470024,-1196.36,0.00021095,2]
[349791555,1737431470033,-1380.46,0.00021095,2]
[349791556,1737431470043,-618.98,0.00021095,2]
[349791557,1737431470052,-500.0,0.00021095,2]
[349791558,1737431470071,-549.65,0.00021095,2]
[349791559,1737431470087,-673.28,0.00021095,2]
[349791560,1737431470107,-2381.85,0.00021095,2]
[349791561,1737431470127,-500.0,0.00021095,2]
[349791562,1737431470143,-1438.7,0.00021095,2]
[349791563,1737431470162,-500.0,0.00021095,2]
[349791564,1737431470180,-500.0,0.00021095,2]
[349791565,1737431470198,-546.12,0.00021095,2]
[349791566,1737431470216,-1308.98,0.00021095,2]
[349791567,1737431470237,-1491.71,0.00021095,2]
[349791568,1737431470253,-573.04,0.00021095,2]
[349791569,1737431470268,-500.0,0.00021095,2]
[349791570,1737431470285,-1575.05,0.00021095,2]
[349791571,1737431470300,-894.47,0.00021095,2]
[349791572,1737431470318,-628.18,0.00021095,2]
[349791573,1737431470333,-500.0,0.00021095,2]
[349791574,1737431470350,-500.0,0.00021095,2]
[349791575,1737431470366,-1534.21,0.00021095,2]
[349791576,1737431470383,-1230.77,0.00021095,2]
[349791577,1737431470402,-500.0,0.00021095,2]
[349791578,1737431470417,-681.3,0.00021095,2]
[349791579,1737431470432,-500.0,0.00021095,2]
[349791580,1737431470448,-500.0,0.00021095,2]
[349791581,1737431470463,-500.0,0.00021095,2]
[349791582,1737431470481,-700.3,0.00021095,2]
[349791583,1737431470496,-500.0,0.00021095,2]
[349791584,1737431470511,-1332.19,0.00021095,2]
[349791585,1737431470526,-907.81,0.00021095,2]
[349791586,1737431470540,-500.0,0.00021095,2]
[349791587,1737431470556,-208.67537111,0.00021173,2]
[349791588,1737431470571,-151.54188646,0.00021231,2]
[349791589,1737431470586,-21948.61484313,0.00021273,2]
[349791590,1737431470601,-15097.33547228,0.00021273,2]
[349791591,1737431470617,-558.51,0.00021284,2]
[349791592,1737431470630,-500.0,0.00021309,2]
[349791593,1737431470644,-500.0,0.00021309,2]
[349791594,1737431470659,-500.0,0.00021309,2]
[349791595,1737431470674,-500.0,0.00021309,2]
[349791596,1737431470687,-984.38,0.00021309,2]
[349791597,1737431470702,-500.0,0.00021309,2]
[349791598,1737431470716,-500.0,0.00021309,2]
[349791599,1737431470730,-500.0,0.00021309,2]
[349791600,1737431470745,-500.0,0.00021309,2]
[349791601,1737431470759,-500.0,0.00021309,2]
[349791602,1737431470773,-500.0,0.00021309,2]
[349791603,1737431470787,-500.0,0.00021309,2]
[349791604,1737431470801,-500.0,0.00021309,2]
[349791605,1737431470815,-500.0,0.00021309,2]
[349791606,1737431470830,-500.0,0.00021309,2]
[349791607,1737431470844,-623.46,0.00021309,2]
[349791608,1737431470861,-500.0,0.00021309,2]
[349791609,1737431470876,-570.93,0.00021309,2]
[349791610,1737431470891,-586.4,0.00021309,2]
[349791611,1737431470906,-540.07,0.00021309,2]
[349791612,1737431470922,-292.03568509,0.00021309,2]
[349791613,1737431470936,-500.0,0.00021309,2]
[349791614,1737431470955,-500.0,0.00021309,2]
[349791615,1737431470971,-500.0,0.00021309,2]
[349791616,1737431470986,-572.74,0.00021309,2]
[349791617,1737431471001,-500.0,0.00021309,2]
[349791618,1737431471017,-741.83,0.00021309,2]
[349791619,1737431471032,-728.53,0.00021309,2]
[349791620,1737431471046,-728.53,0.00021309,2]
[349791621,1737431471061,-500.0,0.00021309,2]
[349791622,1737431471077,-535.34,0.00021309,2]
[349791623,1737431471092,-500.0,0.00021309,2]
[349791624,1737431471106,-500.0,0.00021309,2]
[349791625,1737431471255,-835.45,0.00021309,2]
[349791626,1737431471265,-500.0,0.00021309,2]
[349791627,1737431471276,-500.0,0.00021309,2]
[349791628,1737431471285,-500.0,0.00021309,2]
[349791629,1737431471295,-503.48,0.00021309,2]
[349791630,1737431471305,-2737.18,0.00021309,2]
[349791631,1737431471314,-500.0,0.00021309,2]
[349791632,1737431471324,-500.0,0.00021309,2]
[349791633,1737431471333,-500.0,0.00021309,2]
[349791634,1737431471343,-500.0,0.00021309,2]
[349791635,1737431471352,-541.01728264,0.00021309,2]
[349791636,1737431471361,-3365.89,0.00021309,2]
[349791637,1737431471370,-414.04288371,0.00021309,2]
[349791638,1737431471379,-500.0,0.00021309,2]
[349791639,1737431471390,-500.0,0.00021309,2]
[349791640,1737431471400,-500.0,0.00021309,2]
[349791641,1737431471410,-1871.28,0.00021309,2]
[349791642,1737431471420,-500.0,0.00021309,2]
[349791643,1737431471429,-500.0,0.00021309,2]
[349791644,1737431471438,-500.0,0.00021309,2]